Cogmind - Beta 16 @@@ ROGUE MODE // 2026.01.01 @ 05:41:46 Player: LYMPH NODE JONES Result: Destroyed self via exploding Nuclear Reactor Performance ------------- Evolutions (0) 0 Regions Visited (1) 200 Robots Destroyed (9) 45 Value Destroyed (343) 343 Prototype IDs (0) 0 Alien Tech Used (0) 0 Bonus (0) 0 TOTAL SCORE: 588 Bonus ------- None Cogmind --------- Core Integrity 0/250 Matter 295/300 Energy 100/100 System Corruption 0% Temperature Warning (335) Movement Walking (120) Location -10/Materials Parts ------- > --- POWER (1) -------- (None) > --- PROPULSION (2) --- Aluminum Leg Aluminum Leg > --- UTILITY (2) ------ Small Storage Unit Sensor Array > --- WEAPON (2) ------- Particle Gun Beam Cannon > --- INVENTORY (8) ---- Light Ion Engine Improved Heat Sink Propulsion Shielding Light Assault Rifle Grenade Launcher Grenade Launcher Datajack Peak State ------------ > --- POWER ------------ Ion Engine > --- PROPULSION ------- Aluminum Leg Aluminum Leg > --- UTILITY ---------- Improved Heat Sink Small Storage Unit > --- WEAPON ----------- Assault Rifle Light Assault Rifle > --- INVENTORY -------- Light Ion Engine Wheel Wheel Small Laser Grenade Launcher [Rating: 9] Favorites ----------- Power Ion Engine Engine Ion Engine Propulsion Aluminum Leg Leg Aluminum Leg Utility Small Storage Unit Device Sensor Array Storage Small Storage Unit Weapon Light Assault Rifle Energy Gun Particle Gun Energy Cannon Beam Cannon Ballistic Gun Light Assault Rifle Build | -11 -10 ------- Run | Yrd Mat Slots Evolved . | . . Power . | . . Propulsion . | . . Utility . | . . Weapon . | . . Parts Attached 13 | 6 7 Power 2 | 1 1 Engine 2 | 1 1 Core . | . . Reactor . | . . Propulsion 4 | 2 2 Treads . | . . Leg 4 | 2 2 Wheel . | . . Hover . | . . Flight . | . . Utility 3 | 1 2 Device 2 | . 2 Storage 1 | 1 . Processor . | . . Hackware . | . . Protection . | . . Artifact . | . . Weapon 4 | 2 2 Energy Gun 1 | . 1 Energy Cannon 1 | . 1 Ballistic Gun 2 | 2 . Ballistic Cannon . | . . Launcher . | . . Special Weapon . | . . Impact Weapon . | . . Slashing Weapon . | . . Piercing Weapon . | . . Special Melee Weapon . | . . Unidentified Prototypes . | . . Parts Lost 1 | . 1 Power 1 | . 1 Propulsion . | . . Utility . | . . Weapon . | . . Highest Loss Streak 1 | . 1 To Critical Strikes . | . . Average Backups 6 | 1 7 Power . | . 1 Propulsion . | . . Utility 1 | . 1 Weapon 3 | . 3 Tool/Special . | . . Unused Backups 10 | . 10 Power 1 | . 1 Propulsion 2 | . 2 Utility 3 | . 3 Weapon 3 | . 3 Tool/Special 1 | . 1 Average Slot Usage (%) 97 | . 97 Engine 14 | . 14 Leg 28 | . 28 Device 12 | . 12 Storage 14 | . 14 Energy Cannon 8 | . 8 Ballistic Gun 18 | . 18 Peak Build Rating 9 | 6 9 Average Rating 7 | 4 8 On Entrance 3 | . 6 Avg Prop Armor Cover (%) . | . . Naked Turns . | . . Heaviest Build 17 | 13 17 Greatest Support 20 | 20 20 Greatest Overweight (x) 1 | . 1 Average Overweight (x) . | . . Largest Inventory Capacity 8 | 8 8 Average Capacity 7 | 6 8 Most Carried 8 | 4 8 Average Carried 6 | 1 7 Final Capacity 8 | 8 8 Final Carried 7 | 4 7 Class Distribution -------------------- 100% | Mutant Dominant Class ---------------- Mutant | -10/Materials Resources | -11 -10 ----------- Run | Yrd Mat Matter Collected 425 | 174 251 Remotely . | . . Salvage Created 413 | . 413 Parts 18 | . 18 Haulers Intercepted . | . . Recyclers Shooed . | . . Parts Field Recycled . | . . Retrieved Matter . | . . Parts Self-Destructed . | . . Prevented . | . . Parts Restored . | . . Kills | -11 -10 ------- Run | Yrd Mat Combat Hostiles Destroyed 8 | . 8 Guns 6 | . 6 Cannons 1 | . 1 AOE 1 | . 1 Classes Destroyed 3 | . 3 Recycler 1 | . 1 Grunt 7 | . 7 Subdweller 1 | . 1 Best Kill Streak 2 | . 2 Combat Bots Only 2 | . 2 Max Kills in Single Turn 1 | . 1 Gunslinging . | . . Exploded 1 | . 1 Melee . | . . Uniques/NPCs Destroyed . | . . Combat | -11 -10 -------- Run | Yrd Mat Hostile Shots Fired 57 | . 57 Missed 17 | . 17 Hits 40 | . 40 Projectile 40 | . 40 Damage Taken 705 | . 705 Core 273 | . 273 Absorbed by Shields . | . . Core Remaining (%) 100 | 100 . Volleys Fired 40 | . 40 Largest 2 | . 2 Hottest 125 | . 125 Shots Fired 77 | . 77 Gun 62 | . 62 Cannon 15 | . 15 Launcher . | . . Special . | . . Kinetic 55 | . 55 Thermal 22 | . 22 Explosive . | . . Electromagnetic . | . . Robot Hit Streak 8 | . 8 Robot Miss Streak 6 | . 6 Penetration Max . | . . Secondary Targets 2 | . 2 Max Gunslinging Chain 1 | . 1 Shots Hit Robots 45 | . 45 Core Hits 19 | . 19 Critical Kills . | . . Critical Parts Destroyed . | . . Critical Strikes . | . . Melee Attacks . | . . Impact . | . . Slashing . | . . Piercing . | . . Sneak Attacks . | . . Combat Hostiles . | . . Follow-up Attacks . | . . Damage Inflicted 725 | . 725 Guns 431 | . 431 Cannons 122 | . 122 Explosions 172 | . 172 Melee . | . . Ramming . | . . Kinetic 403 | . 403 Thermal 150 | . 150 Explosive 172 | . 172 Electromagnetic . | . . Impact . | . . Slashing . | . . Piercing . | . . Highest Corruption . | . . Average Corruption . | . . Corruption Purged . | . . Corruption Blocked . | . . Overload Shots . | . . Overflow Damage 84 | . 84 Projectiles . | . . Explosions 84 | . 84 Melee . | . . Knockbacks . | . . Impact . | . . Kinetic . | . . Secondary . | . . Self-Inflicted Damage 167 | . 167 Shots 2 | . 2 Rammed . | . . Targets Rammed . | . . Kicked . | . . Crushed . | . . Highest Temperature 335 | . 335 Average Temperature 133 | . 133 Received Heat Transfer 273 | . 273 Effects 3 | . 3 Interference 3 | . 3 Siege Activations . | . . Martial Activations . | . . Shielding Activations . | . . Robots Disrupted . | . . Combat Hostiles . | . . Robots Corrupted . | . . Combat Hostiles . | . . Parts Fried . | . . Impact Corruptions . | . . Robots Melted . | . . Combat Hostiles . | . . Parts Melted . | . . Heat Transferred 333 | . 333 Parts Sabotaged . | . . Parts Stolen . | . . Parts Stripped . | . . Power Chain Reactions . | . . Alert | -11 -10 ------- Run | Yrd Mat Maximum Alert Level . | . . Low Security (%) 100 | 100 100 Level 1 . | . . Level 2 . | . . Level 3 . | . . Level 4 . | . . Level 5 . | . . High Security . | . . Max Security . | . . Peak Influence 50 | . 50 Initial . | . . Average 6 | . 7 Influence Increases 251 | . 251 Destroy 0b10 Robot/C 140 | . 140 Destroy 0b10 Robot/NC 5 | . 5 Destroy Leader 40 | . 40 Disable Machine 30 | . 30 Destroy Structure 36 | . 36 Influence Decreases 151 | . 151 Time Decay 141 | . 141 Lost Part 10 | . 10 Squads Dispatched 1 | . 1 Investigation . | . . Extermination . | . . Reinforcement 1 | . 1 Assault . | . . Garrison . | . . Intercept . | . . Searches Triggered . | . . Construction Impeded . | . . Haulers Reinforced . | . . Active Scanning Responses . | . . Cargo Convoy Interrupts . | . . Stealth | -11 -10 --------- Run | Yrd Mat Distress Signals 2 | . 2 Communications Jammed . | . . Distress Signals . | . . Times Spotted 13 | . 13 Peak Tracking Total 3 | . 3 Tactical Retreats 1 | . 1 Traps | -11 -10 ------- Run | Yrd Mat Traps Triggered . | . . Indirectly . | . . Trap Hack Attempts . | . . Triggered . | . . Disarmed . | . . Reprogrammed . | . . Reused . | . . Traps Extracted . | . . Installed . | . . Triggered . | . . Machines | -11 -10 ---------- Run | Yrd Mat Machines Disabled 2 | . 2 Max in Single Turn 2 | . 2 Machines Repaired . | . . Machines Dismantled . | . . Machines Sabotaged . | . . Overloaded Fab Kills . | . . Hacking | -11 -10 --------- Run | Yrd Mat Machines Accessed 2 | . 2 Terminals 2 | . 2 Fabricators . | . . Repair Stations . | . . Recycling Units . | . . Scanalyzers . | . . Garrison Access . | . . Total Hacks 3 | . 3 Successful 1 | . 1 Failed 2 | . 2 Catastrophic . | . . Database Lockouts . | . . Manual . | . . Terminals 3 | . 3 Fabricators . | . . Repair Stations . | . . Recycling Units . | . . Scanalyzers . | . . Garrison Access . | . . Terminal Hacks 1 | . 1 Hauler Manifests 1 | . 1 Fabricator Hacks . | . . Repair Station Hacks . | . . Recycling Unit Hacks . | . . Scanalyzer . | . . Garrison Access Hacks . | . . Unauthorized Hacks . | . . Terminals . | . . Fabricators . | . . Repair Stations . | . . Recycling Units . | . . Scanalyzers . | . . Garrison Access . | . . Data Cores Recovered . | . . Used . | . . Hacking Detections 1 | . 1 Full Trace Events . | . . Feedback Events . | . . Feedback Blocked . | . . Robot Schematics Acquired . | . . Robots Built . | . . Authchips . | . . Time . | . . Total Robot Build Rating . | . . Part Schematics Acquired . | . . Parts Built . | . . Authchips . | . . Time . | . . Total Part Build Rating . | . . Part Studies Acquired . | . . Parts Repaired . | . . Time . | . . Parts Recycled . | . . Recycled Matter . | . . Retrieved Matter . | . . Retrieved Components . | . . Parts Scanalyzed . | . . Part Schematics Acquired . | . . Parts Damaged . | . . Bothacking | -11 -10 ------------ Run | Yrd Mat Used RIF Installer . | . . Robots Hacked . | . . Non-combat . | . . Combat . | . . Robot Hacks Applied . | . . Relay Couplers Released . | . . Fabnet Peak Effective % . | . . Robots Rewired . | . . Allies Hacked . | . . Hacks Repelled . | . . Allies | -11 -10 -------- Run | Yrd Mat Total Allies . | . . Largest Group . | . . Highest-Rated Group . | . . Highest-Rated Ally . | . . Total Orders . | . . Ally Attacks . | . . Total Damage . | . . Kills . | . . Allies Corrupted . | . . Allies Melted . | . . Intel | -11 -10 ------- Run | Yrd Mat Active Infowar (turns) 542 | . 542 Sensors 542 | . 542 Robot Analysis Total . | . . Derelict Logs Recovered . | . . Drone Launches . | . . Drone Recoveries . | . . Exploration | -11 -10 ------------- Run | Yrd Mat Turns Passed 1114 | 64 1050 Spaces Moved 512 | 46 466 Core 5 | 5 . Treads . | . . Legs 507 | 41 466 Wheels . | . . Hover . | . . Flight . | . . Fastest Speed 50 | 50 120 Average Speed 119 | 112 120 Slowest Speed 190 | 120 190 Overloaded Moves . | . . Propulsion Burnouts . | . . Robots Hopped . | . . Potential Cave-ins . | . . Cave-ins Triggered . | . . Exploration Rate (%) 31 | 4 59 Regions Visited 1 Branch Regions . Pre-discovered Areas . | . . Known Exits Taken . | . . Unknown Exits Taken 1 | 1 . Scrap Searched . | . . Spaces Dug . | . . Terrain Destroyed 33 | . 33 Melee . | . . Projectile . | . . AOE 33 | . 33 Terrain Rammed . | . . Walls Destroyed . | . . Machines Disabled . | . . Actions | -11 -10 --------- Run | Yrd Mat Total 944 | 55 889 Wait 355 | . 355 Move 511 | 45 466 Hop . | . . Pick Up 13 | 4 9 Fast Attach 11 | 6 5 Attach 2 | . 2 Detach 2 | . 2 Swap . | . . Drop 10 | . 10 Fire 40 | . 40 Melee . | . . Ram . | . . Kick . | . . Crush . | . . Escape Stasis . | . . Rewire . | . . Trap . | . . Miscellaneous . | . . Route ------- -11/Scrapyard -10/Materials (discovered 2 exits: [*Mat] / [*Min]) History --------- Turn | Location | Event 3 | -11/Scrapyard | Discovered new exit (range 15) 65 | -11/Scrapyard | Entered Materials 255 | -10/Materials | Discovered new exit (range 16) 309 | -10/Materials | Build established: Mutant 483 | -10/Materials | Discovered new exit (range 10) 665 | -10/Materials | Derelicts attacked the area 719 | -10/Materials | Core integrity fell below 50% 1110 | -10/Materials | Core integrity fell below 20% 1115 | -10/Materials | Destroyed self via exploding Nuclear Reactor Last Messages --------------- 00665_ ALERT: Derelict incursion detected, rerouting patrols to target area. 00678_ Acquired 10 matter. 00706_ K-01 Serf collects debris. 00723_ 9E-N2V(R) destroyed. 00730_ Acquired 4 matter. 01045_ Dropped Sml. Laser. 01087_ Overheating: System interference. 01087_ Particle Gun temporarily disabled. 01089_ G-34 Mercenary destroyed. 01092_ Overheating: System interference. 01092_ Beam Cannon temporarily disabled. 01092_ Sensor Array temporarily disabled. 01115_ Nuclear Reactor explodes. 01115_ Destroyed Particle Gun. 01115_ Destroyed Lgt. Nuclear Core. 01115_ Ion Engine destroyed. 01115_ Destroyed Ion Engine. 01115_ Nuclear Reactor explodes. 01115_ G-47 Trooper destroyed. Map ----- +----------------------------------------------------+ | ??????????????????????????????????????###/######?? | | ???????????????????????????????????????## ######## | | ?????????????????????????????????????? | | ??????????????????????????????????? ? | | ?????????????????????????????????? ??"" """ | | ?????????????????????????????????? """"""""" | | ??????????????????????????????????# """"" " | | ??????????????????????????????????# | | ??????????????????????????????????# | | ??????????????????????????????????# """ """ | | ????????????????????????????#####?# """"""""" | | ???????????????????????????? ## """"" " | | ??????????????????????????? | | ??????????????????????????? < ^ ^ | | ??????????????????????????? | | ???????????????????????????? "## | | ??????????????????????????????????# | | ??????????????????????????????????# | | ??????????????????????????????????#% ! | | ????????????????????????## # ! | | ??????????????####+###+## # ####+#####"T"# | | ??????????????# # # ##! ##"""# | | ??????????????? ## ###### | | ????????????????? ## """ #????? | | ?????????????????"" """ ## """ #????? | | ?????????????????"" """ @ % ## """ !#????? | | ?????????????????"" """ = # ## #????? | | ????????????????? % # #########????? | | ??????????????? ## #????????????? | | ???????????????######## ### #????###?????? | | ?????????????????????# #?# #???## ?????? | | ????????????????????##+## ##?# #???# #????? | | ????????????????????# [## #??# #???# ##??? | | ????????????????????# ## #??# #???? ##?? | | ??????????########### ## #??# #????? #?? | | ??????????# # ## #??# #?????? #?? | | ??????????# "" ######## =%#### ########" "### | | ??????????# "" """ # = | | ??????????# "T """ + | | ??????????# ""! """ # % | | ??????????# "" # #######+########+########## | | ??????????# # #?# # #???# | | ??????????# # #?# # """ #???# | | ???????########+##### #?# !!# """"" #??## | | ???????# """ # ##### #?# !!# """"" #??# | | ???????# """ + #?# #** """"" #??# | | ???????# """ #+#####+### #** """ #??# | | ???????# # # #** #??# | | ???????# #! **! # # [ #??# | | ???????# # *!! = #####################??### | +----------------------------------------------------+ Best States ------------- Heat Dissipation 39 Energy Generation 10 Energy Capacity 250 Matter Stores 300 Matter Capacity 300 Sight Range 16 Robot Scan Range 14 Terrain Scan Density 10 Evasion (%) 55 Item Schematics ----------------- None Robot Schematics ------------------ None Fabricated ------------ Nothing Repaired ---------- Nothing Studied --------- None Alien Tech Used ----------------- None Achievements -------------- None Challenges ------------ None Game ------ Seed RainbowExperimentalScythe Manual? 0 Play Time 00:16:07 Cumulative 5.2 hours Start 2026.01.01 @ 05:28:23 End 2026.01.01 @ 05:41:46 Sessions 1 Manual Loads 0 Difficulty Rogue Special Mode None Game No. 15 Rogue 15 Adventurer 0 Explorer 0 Win Type - Total 0 Types 0/0/0/0/0/0/0/0/0/0 Lore% 1 Gallery% 7 Achievement% 9 Wizard Run 0 Options --------- Layout 1 ASCII 0 Keyboard 0 Movement Arrows Keybinds 0 Fullscreen 1 Font 16/SmallcapsGlow Map View 50x40 Zoom Use 0% Tactical HUD 1 Map Filters NONE Filters NONE Steam SD RUN: ac0dab1b-145e-45f1-be38-3b946d917b2a